{"text_format":"2","workbook":"xlsx","n_sheets":1,"sheets":["Munka1"],"not_rendered":{"charts":0,"images":0,"macros":0,"external_links":0,"defined_names":0,"comments":0,"pivot_tables":0},"unopened":[],"bounds":{"document_bytes":16777216,"sheet_cells":100000,"run_cost":"one","rows_first":2000,"rows_last":500,"rows_between":2000,"halvings":0,"cell_chars":16384,"cell_head_chars":4096},"cells_cut":0,"cells_raw":0,"read":"whole","date_system":"1900"}

{"sheet":"Munka1","index":0,"n_rows":33,"n_cols":6,"rows_kept":33,"cut":false,"hidden":false,"merged":[[3,0,3,5],[32,4,32,5]]}
[]
["Kitöltötte:"]
[]
["Tárgy: SZTE József Attila Tanulmányi és Információs Központ biztonságtechnikai kamerarendszer cseréje 2025."]
[null,"Megnevezés:","Mennyiség:","Menny Egys:","Egységár","Összesen"]
[1,"DVR rögzítő -  32 analóg csatorna, 8 IP csatorna, 1080P/20fps ill. 4MP/15 fps rögzítés, H265,  2 db HDD, rack szerelhetőség, (pl. Hikvision iDS-7232 HQHI-M2/XT)",2,"db",null,{"$f":"ROUND(E6*C6,0)","v":0}]
[2,"HDD - 3,5\" PURPLE 6 TB biztonságtechnikai merevlemez, 24/7 üzemmód, 256MB cache, (pl. WD64PURZ)",4,"db",null,{"$f":"ROUND(E7*C7,0)","v":0}]
[3,"DVR rögzítő - AcuSense, 16 analóg csatorna, 2 IP csatorna, 1080P/20fps ill. 4MP/15 fps rögzítés, H265, riasztás I/O (pl. Hikvision iDS-7216 HQHI-M2/S (C )",2,"db",null,0]
[4,"HDD - 3,5\" PURPLE 6 TB biztonságtechnikai merevlemez, 24/7 üzemmód, 256MB cache, (pl. WD64PURZ)",2,"db",null,0]
[5,"switch 24 port Gigabit port, PoE, menedzselhető, \n(pl. HP Aruba switch Instant On 1830 24G 2SFP 195W))",1,"db",null,0]
[6,"kamera elosztó központ - fém szekrény, 230V gyűjtőpont, (pl. K01 kamera elosztó központ)",1,"klt",null,0]
[7,"egyéb szerelési anyagok ",1,"klt",null,0]
[8,"kamera - 2 MP csőkamera, IR LED, 25 fps (pl. Hikvision DS-2CD1T27G2H-LIUF",5,"db",null,0]
[9,"kötődoboz - kötődoboz csőkamerához (pl. Hikvision DS-1280ZJ-XS)",5,"db",null,0]
[10,"kamera - 2 MP kültéri csőkamera, IR LED, IP67 védettség, 12V DC táp, 0.01 LUX (pl. Hikvision DS-2CE17H0T-IT3F)",7,"db",null,0]
[11,"kötődoboz - kötődoboz csőkamerához (pl. Hikvision DS-1280ZJ-XS)",7,"db",null,0]
[12,"kamera - 5 MP fix dómkamera, OSD menü, 30m IR megvilágítás, (pl. Hikvision DS-2CE57H8T-VPITF",58,"db",null,0]
[13,"kötődoboz - kötődoboz dómkamerához (pl. Hikvision DS-1280ZJ-DM18)",58,"db",null,0]
[14,"tápegység - tápegység csatlakozóval, kötődobozba (pl. Hikvision SD1412v2)",65,"db",null,0]
[15,"egyéb szerelési anyagok ",1,"klt",null,0]
[16,"STP kábel - 4x2 eres falikábel, CAT6A, 10GBASE-T protokoll, STP AWG23 (550MHz)",900,"m",null,0]
[17,"egyéb szerelési anyagok ",1,"klt",null,{"$f":"ROUND(E22*C22,0)","v":0}]
[18,"védőcső - 25/2000 mm, sima vékonyfalú védőcső (pl. BUDVILL 25)",300,"m",null,0]
[19,"egyéb szerelési anyagok ",1,"klt",null,0]
[20,"CCTV rendszer beüzemelése, programozása, próbaüzem kezelő személyzet oktatása ",1,"db",null,0]
[21,"Munkadíj",1,"db",null,0]
[null,"Anyag+Munkadíj összesen:",null,null,null,{"$f":"ROUND(SUM(F6:F26),0)","v":0}]
[null,"ÁFA ",0.27,null,null,{"$f":"ROUND(F27*C28,0)","v":0}]
[null,"Bruttó vállalkozási ár:",null,null,null,{"$f":"ROUND(F27+F28,0)","v":0}]
[]
[]
[]
[{"$nulls":4},"cégszerű aláírás"]